{"text_format":"3","workbook":"xlsx","n_sheets":1,"sheets":["TROŠKOVI PREUREĐENJA KUPAONICE"],"not_rendered":{"defined_names":3},"read":"whole","date_system":"1900"}

{"sheet":"TROŠKOVI PREUREĐENJA KUPAONICE","index":0,"n_rows":23,"n_cols":10,"rows_kept":23,"merged":[[1,1,2,3],[2,4,2,6],[2,7,2,9],[21,1,21,3],[21,4,21,6],[21,7,21,9],[22,1,22,3],[22,4,22,6],[22,7,22,9]]}
[null,"TABLICA TROŠKOVA PREUREĐENJA KUPAONICE"]
[null,"NAPOMENA: Stupci s razlikom u tablici pojavit će se ako aktiva nije premašila procijenjene iznose. Crveni brojevi pojavljuju se iznad (negativno), a crni ispod brojeva (pozitivno). "]
[{"$nulls":4},"Troškovi po stavkama (kn)",null,null,"Ukupni trošak (kn)"]
[null,"Dio kupaonice","Stavke","Količina","Procijenjeni","Stvarni","Razlika","Procijenjeni ","Stvarni ","Razlika "]
[null,"Kada/tuš","Kada, lijevano željezo, 12 cm, standardna",1,{"v":250,"d":"250.00 kn"},{"$f":"RANDBETWEEN(E5+2,E5+20)","v":{"v":254,"d":"254.00 kn"}},{"$f":"IFERROR(Troškovi[[#This Row],[Procijenjeni]]-Troškovi[[#This Row],[Stvarni]], \"\")","v":{"v":-4,"d":"-4.00 kn"}},{"$f":"IFERROR(Troškovi[[#This Row],[Količina]]*Troškovi[[#This Row],[Procijenjeni]], \"\")","v":{"v":250,"d":"250.00 kn"}},{"$f":"IFERROR(Troškovi[[#This Row],[Količina]]*Troškovi[[#This Row],[Stvarni]], \"\")","v":{"v":254,"d":"254.00 kn"}},{"$f":"IFERROR(Troškovi[[#This Row],[Procijenjeni ]]-Troškovi[[#This Row],[Stvarni ]], \"\")","v":{"v":-4,"d":"-4.00 kn"}}]
[null,"Kada/tuš","Vrata tuš-kabine, sa šarkama, standardna",1,{"v":200,"d":"200.00 kn"},{"v":212,"d":"212.00 kn"},{"$f":"IFERROR(Troškovi[[#This Row],[Procijenjeni]]-Troškovi[[#This Row],[Stvarni]], \"\")","v":{"v":-12,"d":"-12.00 kn"}},{"$f":"IFERROR(Troškovi[[#This Row],[Količina]]*Troškovi[[#This Row],[Procijenjeni]], \"\")","v":{"v":200,"d":"200.00 kn"}},{"$f":"IFERROR(Troškovi[[#This Row],[Količina]]*Troškovi[[#This Row],[Stvarni]], \"\")","v":{"v":212,"d":"212.00 kn"}},{"$f":"IFERROR(Troškovi[[#This Row],[Procijenjeni ]]-Troškovi[[#This Row],[Stvarni ]], \"\")","v":{"v":-12,"d":"-12.00 kn"}}]
[null,"Kada/tuš","Slušalica tuša, standardna",1,{"v":50,"d":"50.00 kn"},{"v":64,"d":"64.00 kn"},{"$f":"IFERROR(Troškovi[[#This Row],[Procijenjeni]]-Troškovi[[#This Row],[Stvarni]], \"\")","v":{"v":-14,"d":"-14.00 kn"}},{"$f":"IFERROR(Troškovi[[#This Row],[Količina]]*Troškovi[[#This Row],[Procijenjeni]], \"\")","v":{"v":50,"d":"50.00 kn"}},{"$f":"IFERROR(Troškovi[[#This Row],[Količina]]*Troškovi[[#This Row],[Stvarni]], \"\")","v":{"v":64,"d":"64.00 kn"}},{"$f":"IFERROR(Troškovi[[#This Row],[Procijenjeni ]]-Troškovi[[#This Row],[Stvarni ]], \"\")","v":{"v":-14,"d":"-14.00 kn"}}]
[null,"Kada/tuš","Ugradbena kada, standardna",1,{"v":200,"d":"200.00 kn"},{"v":202,"d":"202.00 kn"},{"$f":"IFERROR(Troškovi[[#This Row],[Procijenjeni]]-Troškovi[[#This Row],[Stvarni]], \"\")","v":{"v":-2,"d":"-2.00 kn"}},{"$f":"IFERROR(Troškovi[[#This Row],[Količina]]*Troškovi[[#This Row],[Procijenjeni]], \"\")","v":{"v":200,"d":"200.00 kn"}},{"$f":"IFERROR(Troškovi[[#This Row],[Količina]]*Troškovi[[#This Row],[Stvarni]], \"\")","v":{"v":202,"d":"202.00 kn"}},{"$f":"IFERROR(Troškovi[[#This Row],[Procijenjeni ]]-Troškovi[[#This Row],[Stvarni ]], \"\")","v":{"v":-2,"d":"-2.00 kn"}}]
[null,"Kupaonski ormarići","Ormarić za lijekove, 60 cm, luksuzni",1,{"v":200,"d":"200.00 kn"},{"v":206,"d":"206.00 kn"},{"$f":"IFERROR(Troškovi[[#This Row],[Procijenjeni]]-Troškovi[[#This Row],[Stvarni]], \"\")","v":{"v":-6,"d":"-6.00 kn"}},{"$f":"IFERROR(Troškovi[[#This Row],[Količina]]*Troškovi[[#This Row],[Procijenjeni]], \"\")","v":{"v":200,"d":"200.00 kn"}},{"$f":"IFERROR(Troškovi[[#This Row],[Količina]]*Troškovi[[#This Row],[Stvarni]], \"\")","v":{"v":206,"d":"206.00 kn"}},{"$f":"IFERROR(Troškovi[[#This Row],[Procijenjeni ]]-Troškovi[[#This Row],[Stvarni ]], \"\")","v":{"v":-6,"d":"-6.00 kn"}}]
[null,"Kupaonski ormarići","Modularni ormarić za umivaonik, 76 cm, standardni",2,{"v":100,"d":"100.00 kn"},{"v":110,"d":"110.00 kn"},{"$f":"IFERROR(Troškovi[[#This Row],[Procijenjeni]]-Troškovi[[#This Row],[Stvarni]], \"\")","v":{"v":-10,"d":"-10.00 kn"}},{"$f":"IFERROR(Troškovi[[#This Row],[Količina]]*Troškovi[[#This Row],[Procijenjeni]], \"\")","v":{"v":200,"d":"200.00 kn"}},{"$f":"IFERROR(Troškovi[[#This Row],[Količina]]*Troškovi[[#This Row],[Stvarni]], \"\")","v":{"v":220,"d":"220.00 kn"}},{"$f":"IFERROR(Troškovi[[#This Row],[Procijenjeni ]]-Troškovi[[#This Row],[Stvarni ]], \"\")","v":{"v":-20,"d":"-20.00 kn"}}]
[null,"Plohe","Keramičke pločice, luksuzne (kol. u kub. metrima)",5,{"v":22.5,"d":"22.50 kn"},{"v":37,"d":"37.00 kn"},{"$f":"IFERROR(Troškovi[[#This Row],[Procijenjeni]]-Troškovi[[#This Row],[Stvarni]], \"\")","v":{"v":-14.5,"d":"-14.50 kn"}},{"$f":"IFERROR(Troškovi[[#This Row],[Količina]]*Troškovi[[#This Row],[Procijenjeni]], \"\")","v":{"v":112.5,"d":"112.50 kn"}},{"$f":"IFERROR(Troškovi[[#This Row],[Količina]]*Troškovi[[#This Row],[Stvarni]], \"\")","v":{"v":185,"d":"185.00 kn"}},{"$f":"IFERROR(Troškovi[[#This Row],[Procijenjeni ]]-Troškovi[[#This Row],[Stvarni ]], \"\")","v":{"v":-72.5,"d":"-72.50 kn"}}]
[null,"Miješalice","Miješalica, kada, standardna",1,{"v":90,"d":"90.00 kn"},{"v":109,"d":"109.00 kn"},{"$f":"IFERROR(Troškovi[[#This Row],[Procijenjeni]]-Troškovi[[#This Row],[Stvarni]], \"\")","v":{"v":-19,"d":"-19.00 kn"}},{"$f":"IFERROR(Troškovi[[#This Row],[Količina]]*Troškovi[[#This Row],[Procijenjeni]], \"\")","v":{"v":90,"d":"90.00 kn"}},{"$f":"IFERROR(Troškovi[[#This Row],[Količina]]*Troškovi[[#This Row],[Stvarni]], \"\")","v":{"v":109,"d":"109.00 kn"}},{"$f":"IFERROR(Troškovi[[#This Row],[Procijenjeni ]]-Troškovi[[#This Row],[Stvarni ]], \"\")","v":{"v":-19,"d":"-19.00 kn"}}]
[null,"Miješalice","Miješalica, tuš-kada, jedna ručica, standardna",1,{"v":115,"d":"115.00 kn"},{"v":134,"d":"134.00 kn"},{"$f":"IFERROR(Troškovi[[#This Row],[Procijenjeni]]-Troškovi[[#This Row],[Stvarni]], \"\")","v":{"v":-19,"d":"-19.00 kn"}},{"$f":"IFERROR(Troškovi[[#This Row],[Količina]]*Troškovi[[#This Row],[Procijenjeni]], \"\")","v":{"v":115,"d":"115.00 kn"}},{"$f":"IFERROR(Troškovi[[#This Row],[Količina]]*Troškovi[[#This Row],[Stvarni]], \"\")","v":{"v":134,"d":"134.00 kn"}},{"$f":"IFERROR(Troškovi[[#This Row],[Procijenjeni ]]-Troškovi[[#This Row],[Stvarni ]], \"\")","v":{"v":-19,"d":"-19.00 kn"}}]
[null,"Miješalice","Miješalica za umivaonik, standardna",1,{"v":95,"d":"95.00 kn"},{"v":114,"d":"114.00 kn"},{"$f":"IFERROR(Troškovi[[#This Row],[Procijenjeni]]-Troškovi[[#This Row],[Stvarni]], \"\")","v":{"v":-19,"d":"-19.00 kn"}},{"$f":"IFERROR(Troškovi[[#This Row],[Količina]]*Troškovi[[#This Row],[Procijenjeni]], \"\")","v":{"v":95,"d":"95.00 kn"}},{"$f":"IFERROR(Troškovi[[#This Row],[Količina]]*Troškovi[[#This Row],[Stvarni]], \"\")","v":{"v":114,"d":"114.00 kn"}},{"$f":"IFERROR(Troškovi[[#This Row],[Procijenjeni ]]-Troškovi[[#This Row],[Stvarni ]], \"\")","v":{"v":-19,"d":"-19.00 kn"}}]
[null,"Podovi","Keramičke pločice, standardne (kol. u metrima kubičnim)",35,{"v":12,"d":"12.00 kn"},{"v":27,"d":"27.00 kn"},{"$f":"IFERROR(Troškovi[[#This Row],[Procijenjeni]]-Troškovi[[#This Row],[Stvarni]], \"\")","v":{"v":-15,"d":"-15.00 kn"}},{"$f":"IFERROR(Troškovi[[#This Row],[Količina]]*Troškovi[[#This Row],[Procijenjeni]], \"\")","v":{"v":420,"d":"420.00 kn"}},{"$f":"IFERROR(Troškovi[[#This Row],[Količina]]*Troškovi[[#This Row],[Stvarni]], \"\")","v":{"v":945,"d":"945.00 kn"}},{"$f":"IFERROR(Troškovi[[#This Row],[Procijenjeni ]]-Troškovi[[#This Row],[Stvarni ]], \"\")","v":{"v":-525,"d":"-525.00 kn"}}]
[null,"Galanterija","Držač za ručnike, standardni",2,{"v":15,"d":"15.00 kn"},{"v":23,"d":"23.00 kn"},{"$f":"IFERROR(Troškovi[[#This Row],[Procijenjeni]]-Troškovi[[#This Row],[Stvarni]], \"\")","v":{"v":-8,"d":"-8.00 kn"}},{"$f":"IFERROR(Troškovi[[#This Row],[Količina]]*Troškovi[[#This Row],[Procijenjeni]], \"\")","v":{"v":30,"d":"30.00 kn"}},{"$f":"IFERROR(Troškovi[[#This Row],[Količina]]*Troškovi[[#This Row],[Stvarni]], \"\")","v":{"v":46,"d":"46.00 kn"}},{"$f":"IFERROR(Troškovi[[#This Row],[Procijenjeni ]]-Troškovi[[#This Row],[Stvarni ]], \"\")","v":{"v":-16,"d":"-16.00 kn"}}]
[null,"Galanterija","Držač toaletnog papira",1,{"v":10,"d":"10.00 kn"},{"v":27,"d":"27.00 kn"},{"$f":"IFERROR(Troškovi[[#This Row],[Procijenjeni]]-Troškovi[[#This Row],[Stvarni]], \"\")","v":{"v":-17,"d":"-17.00 kn"}},{"$f":"IFERROR(Troškovi[[#This Row],[Količina]]*Troškovi[[#This Row],[Procijenjeni]], \"\")","v":{"v":10,"d":"10.00 kn"}},{"$f":"IFERROR(Troškovi[[#This Row],[Količina]]*Troškovi[[#This Row],[Stvarni]], \"\")","v":{"v":27,"d":"27.00 kn"}},{"$f":"IFERROR(Troškovi[[#This Row],[Procijenjeni ]]-Troškovi[[#This Row],[Stvarni ]], \"\")","v":{"v":-17,"d":"-17.00 kn"}}]
[null,"Rasvjeta","LED rasvjeta, standardna",4,{"v":25,"d":"25.00 kn"},{"v":40,"d":"40.00 kn"},{"$f":"IFERROR(Troškovi[[#This Row],[Procijenjeni]]-Troškovi[[#This Row],[Stvarni]], \"\")","v":{"v":-15,"d":"-15.00 kn"}},{"$f":"IFERROR(Troškovi[[#This Row],[Količina]]*Troškovi[[#This Row],[Procijenjeni]], \"\")","v":{"v":100,"d":"100.00 kn"}},{"$f":"IFERROR(Troškovi[[#This Row],[Količina]]*Troškovi[[#This Row],[Stvarni]], \"\")","v":{"v":160,"d":"160.00 kn"}},{"$f":"IFERROR(Troškovi[[#This Row],[Procijenjeni ]]-Troškovi[[#This Row],[Stvarni ]], \"\")","v":{"v":-60,"d":"-60.00 kn"}}]
[null,"Umivaonici","Školjka, standardna",2,{"v":60,"d":"60.00 kn"},{"v":78,"d":"78.00 kn"},{"$f":"IFERROR(Troškovi[[#This Row],[Procijenjeni]]-Troškovi[[#This Row],[Stvarni]], \"\")","v":{"v":-18,"d":"-18.00 kn"}},{"$f":"IFERROR(Troškovi[[#This Row],[Količina]]*Troškovi[[#This Row],[Procijenjeni]], \"\")","v":{"v":120,"d":"120.00 kn"}},{"$f":"IFERROR(Troškovi[[#This Row],[Količina]]*Troškovi[[#This Row],[Stvarni]], \"\")","v":{"v":156,"d":"156.00 kn"}},{"$f":"IFERROR(Troškovi[[#This Row],[Procijenjeni ]]-Troškovi[[#This Row],[Stvarni ]], \"\")","v":{"v":-36,"d":"-36.00 kn"}}]
[null,"Ostalo",null,1,{"v":20,"d":"20.00 kn"},{"v":26,"d":"26.00 kn"},{"$f":"IFERROR(Troškovi[[#This Row],[Procijenjeni]]-Troškovi[[#This Row],[Stvarni]], \"\")","v":{"v":-6,"d":"-6.00 kn"}},{"$f":"IFERROR(Troškovi[[#This Row],[Količina]]*Troškovi[[#This Row],[Procijenjeni]], \"\")","v":{"v":20,"d":"20.00 kn"}},{"$f":"IFERROR(Troškovi[[#This Row],[Količina]]*Troškovi[[#This Row],[Stvarni]], \"\")","v":{"v":26,"d":"26.00 kn"}},{"$f":"IFERROR(Troškovi[[#This Row],[Procijenjeni ]]-Troškovi[[#This Row],[Stvarni ]], \"\")","v":{"v":-6,"d":"-6.00 kn"}}]
[null,"Podiznos",null,null,{"$f":"SUBTOTAL(109,Troškovi[Procijenjeni])","v":{"v":1464.5,"d":"1,464.50 kn"}},{"$f":"SUBTOTAL(109,Troškovi[Stvarni])","v":{"v":1663,"d":"1,663.00 kn"}},{"$f":"SUBTOTAL(109,Troškovi[Razlika])","v":{"v":-198.5,"d":"-198.50 kn"}},{"$f":"SUBTOTAL(109,Troškovi[[Procijenjeni ]])","v":{"v":2212.5,"d":"2,212.50 kn"}},{"$f":"SUBTOTAL(109,Troškovi[[Stvarni ]])","v":{"v":3060,"d":"3,060.00 kn"}},{"$f":"SUBTOTAL(109,Troškovi[[Razlika ]])","v":{"v":-847.5,"d":"-847.50 kn"}}]
[null,"Nepredviđeni troškovi (procijenjeni na 30 % iznosa)",null,null,{"$f":"IFERROR(Troškovi[[#Totals],[Procijenjeni]]*0.3, \"\")","v":{"v":439.34999999999997,"d":"439.35 kn"}},null,null,{"$f":"IFERROR(Troškovi[[#Totals],[Procijenjeni ]]*0.3, \"\")","v":{"v":663.75,"d":"663.75 kn"}}]
[null,"Ukupni troškovi",null,null,{"$f":"IFERROR(SUM(E21:E21), \"\")","v":{"v":1464.5,"d":"1,464.50 kn"}},null,null,{"$f":"IFERROR(SUM(Troškovi[[#Totals],[Procijenjeni ]],Pokrivenost), \"\")","v":{"v":2876.25,"d":"2,876.25 kn"}}]